fUST/lending_fUST_20250524
["ID","MTS","AMOUNT","RATE_DAILY","PERIOD"]
[362198685,1748086249374,-430.0,0.00023013,3]
[362198686,1748086249385,-430.0,0.00023013,3]
[362198687,1748086249395,-488.07,0.00023013,3]
[362198688,1748086249403,-990.05,0.00023013,3]
[362198689,1748086249413,-430.0,0.00023013,3]
[362198690,1748086249422,-430.0,0.00023013,3]
[362198691,1748086249433,-438.4,0.00023013,3]
[362198692,1748086249442,-430.0,0.00023013,3]
[362198693,1748086249452,-430.0,0.00023013,3]
[362198694,1748086249461,-430.0,0.00023013,3]
[362198695,1748086249471,-516.91,0.00023013,3]
[362198696,1748086249480,-1237.99,0.00023013,3]
[362198697,1748086249490,-693.0,0.00023013,3]
[362198698,1748086249499,-430.0,0.00023013,3]
[362198699,1748086249508,-430.0,0.00023013,3]
[362198700,1748086249518,-596.48,0.00023013,3]
[362198701,1748086249528,-430.0,0.00023013,3]
[362198702,1748086249537,-1179.88,0.00023013,3]
[362198703,1748086249546,-430.0,0.00023013,3]
[362198704,1748086249555,-587.29,0.00023013,3]
[362198705,1748086249564,-430.0,0.00023013,3]
[362198706,1748086249573,-435.55,0.00023013,3]
[362198707,1748086249583,-3379.15,0.00023013,3]
[362198708,1748086249593,-430.0,0.00023013,3]
[362198709,1748086249602,-430.0,0.00023013,3]
[362198710,1748086249612,-430.0,0.00023013,3]
[362198711,1748086249621,-430.0,0.00023013,3]
[362198712,1748086249630,-430.0,0.00023013,3]
[362198713,1748086249639,-150.0,0.00023078,2]
[362198714,1748086249648,-225.75942845,0.0002315,8]
[362198715,1748086249658,-150.0,0.00023277,2]
[362198716,1748086249667,-150.0,0.00023277,2]
[362198717,1748086249676,-430.0,0.00023286,3]
[362198718,1748086249686,-430.0,0.00023286,3]
[362198719,1748086249695,-1291.0,0.00023286,3]
[362198720,1748086249704,-755.02,0.00023286,3]
[362198721,1748086249713,-2062.18,0.00023286,3]
[362198722,1748086249722,-430.0,0.00023286,3]
[362198723,1748086249731,-887.14,0.00023286,3]
[362198724,1748086249740,-430.0,0.00023286,3]
[362198725,1748086249748,-430.0,0.00023286,3]
[362198726,1748086249757,-430.0,0.00023286,3]
[362198727,1748086249766,-430.0,0.00023286,3]
[362198728,1748086249775,-430.0,0.00023286,3]
[362198729,1748086249784,-430.0,0.00023286,3]
[362198730,1748086249793,-430.0,0.00023287,2]
[362198731,1748086249802,-430.0,0.00023287,3]
[362198732,1748086249812,-430.0,0.00023287,3]
[362198733,1748086249820,-430.0,0.00023287,3]
[362198734,1748086249830,-482.84,0.00023287,3]
[362198735,1748086249840,-430.0,0.00023287,3]
[362198736,1748086249849,-377.22469508,0.00023287,3]
[362198737,1748086249859,-430.0,0.00023287,3]
[362198738,1748086249955,-430.0,0.00023287,3]
[362198739,1748086249965,-430.0,0.00023287,3]
[362198740,1748086249975,-430.0,0.00023287,3]
[362198741,1748086249984,-430.0,0.00023287,3]
[362198742,1748086249993,-430.0,0.00023287,3]
[362198743,1748086250003,-430.0,0.00023287,3]
[362198744,1748086250012,-430.0,0.00023287,3]
[362198745,1748086250021,-430.0,0.00023287,3]
[362198746,1748086250031,-430.0,0.00023287,3]
[362198747,1748086250044,-430.0,0.00023287,3]
[362198748,1748086250055,-430.0,0.00023287,3]
[362198749,1748086250067,-430.0,0.00023287,3]
[362198750,1748086250075,-430.0,0.00023287,3]
[362198751,1748086250086,-430.0,0.00023287,3]
[362198752,1748086250095,-430.0,0.00023287,3]
[362198753,1748086250104,-430.0,0.00023287,3]
[362198754,1748086250115,-430.0,0.00023287,3]
[362198755,1748086250126,-430.0,0.00023287,3]
[362198756,1748086250136,-430.0,0.00023287,3]
[362198757,1748086250146,-430.0,0.00023287,3]
[362198758,1748086250155,-430.0,0.00023287,3]
[362198759,1748086250164,-533.78,0.00023287,3]
[362198760,1748086250174,-430.0,0.00023287,3]
[362198761,1748086250183,-1274.65,0.00023287,3]
[362198762,1748086250192,-430.0,0.00023287,3]
[362198763,1748086250201,-430.0,0.00023287,3]
[362198764,1748086250211,-2092.13,0.00023287,3]
[362198765,1748086250220,-430.0,0.00023287,3]
[362198766,1748086250230,-537.2,0.00023287,3]
[362198767,1748086250239,-430.0,0.00023287,3]
[362198768,1748086250248,-430.0,0.00023287,3]
[362198769,1748086250257,-3133.36,0.00023287,3]
[362198770,1748086250266,-430.0,0.00023287,3]
[362198771,1748086250275,-205.65946404,0.00023287,3]
[362198772,1748086250284,-430.0,0.00023287,3]
[362198773,1748086250293,-430.0,0.00023287,3]
[362198774,1748086250302,-430.0,0.00023287,3]
[362198775,1748086250312,-430.0,0.00023287,3]
[362198776,1748086250321,-430.0,0.00023287,3]
[362198777,1748086250330,-430.0,0.00023287,3]
[362198778,1748086250339,-430.0,0.00023287,3]
[362198779,1748086250347,-435.85,0.00023287,3]
[362198780,1748086250357,-293.37508386,0.00023287,3]
[362198781,1748086250366,-430.0,0.00023287,3]
[362198782,1748086250375,-430.0,0.00023287,3]
[362198783,1748086250386,-581.99,0.00023287,3]
[362198784,1748086250395,-430.0,0.00023287,3]
[362198785,1748086250404,-430.0,0.00023287,3]
[362198786,1748086250414,-430.0,0.00023287,3]
[362198787,1748086250423,-430.0,0.00023287,3]
[362198788,1748086250432,-488.07,0.00023287,3]
[362198789,1748086250443,-990.05,0.00023287,3]
[362198790,1748086250452,-430.0,0.00023287,3]
[362198791,1748086250461,-430.0,0.00023287,3]
[362198792,1748086250470,-438.4,0.00023287,3]
[362198793,1748086250479,-430.0,0.00023287,3]
[362198794,1748086250488,-430.0,0.00023287,3]
[362198795,1748086250498,-430.0,0.00023287,3]
[362198796,1748086250507,-516.91,0.00023287,3]
[362198797,1748086250516,-1237.99,0.00023287,3]
[362198798,1748086250525,-693.0,0.00023287,3]
[362198799,1748086250535,-207.65,0.00023287,3]
[362198800,1748086250544,-430.0,0.00023287,3]
[362198801,1748086250553,-596.48,0.00023287,3]
[362198802,1748086250562,-430.0,0.00023287,3]
[362198803,1748086250571,-1179.88,0.00023287,3]
[362198804,1748086250579,-430.0,0.00023287,3]
[362198805,1748086250588,-587.29,0.00023287,3]
[362198806,1748086250597,-430.0,0.00023287,3]
[362198807,1748086250607,-3379.15,0.00023287,3]
[362198808,1748086250616,-430.0,0.00023287,3]
[362198809,1748086250625,-430.0,0.00023287,3]
[362198810,1748086250634,-430.0,0.00023287,3]
[362198811,1748086250643,-430.0,0.00023287,3]
[362198812,1748086250653,-430.0,0.00023287,3]
[362198813,1748086250662,-404.0,0.00023377,2]
[362198814,1748086250673,-960.0,0.00023377,2]
[362198815,1748086250683,-2236.0,0.00023377,2]
[362198816,1748086250692,-707.0,0.00023377,2]
[362198817,1748086250701,-467.0,0.00023379,2]
[362198818,1748086250711,-587.0,0.00023379,2]
[362198819,1748086250720,-153.0,0.00023397,2]
[362198820,1748086250729,-1500.0,0.00023509,2]
[362198821,1748086250739,-1500.0,0.00023509,2]
[362198822,1748086250748,-500.0,0.00023509,2]
[362198823,1748086250757,-1503.1389503,0.00023509,2]
[362198824,1748086250766,-430.0,0.0002356,3]
[362198825,1748086250775,-430.0,0.0002356,3]
[362198826,1748086250784,-1291.0,0.0002356,3]
[362198827,1748086250793,-755.02,0.0002356,3]
[362198828,1748086250802,-2062.18,0.0002356,3]
[362198829,1748086250811,-430.0,0.0002356,3]
[362198830,1748086250821,-887.14,0.0002356,3]
[362198831,1748086250830,-430.0,0.0002356,3]
[362198832,1748086250839,-430.0,0.0002356,3]
[362198833,1748086250847,-430.0,0.0002356,3]
[362198834,1748086250856,-430.0,0.0002356,3]
[362198835,1748086250866,-180.0,0.0002356,3]
[362198836,1748086250874,-338.81785682,0.0002356,3]
[362198837,1748086250884,-430.0,0.00023561,2]
[362198838,1748086250893,-430.0,0.00023561,3]
[362198839,1748086250902,-541.09,0.00023561,3]
[362198840,1748086250912,-482.84,0.00023561,3]
[362198841,1748086250921,-430.0,0.00023561,3]
[362198842,1748086250931,-430.0,0.00023561,3]
[362198843,1748086250940,-430.0,0.00023561,3]
[362198844,1748086250949,-430.0,0.00023561,3]
[362198845,1748086250958,-430.0,0.00023561,3]
[362198846,1748086250967,-430.0,0.00023561,3]
[362198847,1748086250977,-430.0,0.00023561,3]
[362198848,1748086250986,-430.0,0.00023561,3]
[362198849,1748086250996,-311.82278592,0.00023561,3]
[362198850,1748086251005,-210.0,0.00023561,3]
[362198851,1748086251014,-530.0,0.00023561,3]
[362198852,1748086251025,-430.0,0.00023561,3]
[362198853,1748086251036,-430.0,0.00023561,3]
[362198854,1748086251048,-430.0,0.00023561,3]
[362198855,1748086251060,-430.0,0.00023561,3]
[362198856,1748086251071,-430.0,0.00023561,3]
[362198857,1748086251083,-430.0,0.00023561,3]
[362198858,1748086251092,-430.0,0.00023561,3]
[362198859,1748086251102,-430.0,0.00023561,3]
[362198860,1748086251112,-430.0,0.00023561,3]
[362198861,1748086251122,-430.0,0.00023561,3]
[362198862,1748086251131,-533.78,0.00023561,3]
[362198863,1748086251141,-430.0,0.00023561,3]
[362198864,1748086251150,-1274.65,0.00023561,3]
[362198865,1748086251159,-430.0,0.00023561,3]
[362198866,1748086251169,-430.0,0.00023561,3]
[362198867,1748086251178,-2092.13,0.00023561,3]
[362198868,1748086251188,-430.0,0.00023561,3]
[362198869,1748086251197,-537.2,0.00023561,3]
[362198870,1748086251206,-430.0,0.00023561,3]
[362198871,1748086251215,-430.0,0.00023561,3]
[362198872,1748086251225,-3133.36,0.00023561,3]
[362198873,1748086251234,-430.0,0.00023561,3]
[362198874,1748086251243,-430.0,0.00023561,3]
[362198875,1748086251252,-430.0,0.00023561,3]
[362198876,1748086251261,-430.0,0.00023561,3]
[362198877,1748086251270,-430.0,0.00023561,3]
[362198878,1748086251279,-430.0,0.00023561,3]
[362198879,1748086251288,-430.0,0.00023561,3]
[362198880,1748086251297,-430.0,0.00023561,3]
[362198881,1748086251307,-435.85,0.00023561,3]
[362198882,1748086251316,-430.0,0.00023561,3]
[362198883,1748086251325,-430.0,0.00023561,3]
[362198884,1748086251334,-581.99,0.00023561,3]
[362198885,1748086251343,-430.0,0.00023561,3]
[362198886,1748086251352,-430.0,0.00023561,3]
[362198887,1748086251361,-430.0,0.00023561,3]
[362198888,1748086251371,-430.0,0.00023561,3]
[362198889,1748086251382,-488.07,0.00023561,3]
[362198890,1748086251391,-990.05,0.00023561,3]
[362198891,1748086251474,-430.0,0.00023561,3]
[362198892,1748086251483,-430.0,0.00023561,3]
[362198893,1748086251492,-438.4,0.00023561,3]
[362198894,1748086251502,-430.0,0.00023561,3]
[362198895,1748086251510,-430.0,0.00023561,3]
[362198896,1748086251519,-430.0,0.00023561,3]
[362198897,1748086251529,-516.91,0.00023561,3]
[362198898,1748086251538,-1237.99,0.00023561,3]
[362198899,1748086251547,-693.0,0.00023561,3]
[362198900,1748086251556,-430.0,0.00023561,3]
[362198901,1748086251565,-596.48,0.00023561,3]
[362198902,1748086251574,-430.0,0.00023561,3]
[362198903,1748086251583,-1179.88,0.00023561,3]
[362198904,1748086251593,-430.0,0.00023561,3]
[362198905,1748086251603,-587.29,0.00023561,3]
[362198906,1748086251612,-430.0,0.00023561,3]
[362198907,1748086251621,-3379.15,0.00023561,3]
[362198908,1748086251630,-430.0,0.00023561,3]
[362198909,1748086251639,-430.0,0.00023561,3]
[362198910,1748086251648,-430.0,0.00023561,3]
[362198911,1748086251657,-430.0,0.00023561,3]
[362198912,1748086251666,-430.0,0.00023561,3]
[362198913,1748086251676,-671.0,0.00023726,2]
[362198914,1748086251685,-215.0738,0.0002382,2]
[362198915,1748086251694,-500.0,0.00023834,2]
[362198916,1748086251704,-430.0,0.00023834,3]
[362198917,1748086251713,-1291.0,0.00023834,3]
[362198918,1748086251722,-755.02,0.00023834,3]
[362198919,1748086251733,-2062.18,0.00023834,3]
[362198920,1748086251742,-430.0,0.00023834,3]
[362198921,1748086251752,-887.14,0.00023834,3]
[362198922,1748086251761,-259.94267179,0.00023834,3]
[362198923,1748086251773,-160.0,0.00023834,3]
[362198924,1748086251783,-430.0,0.00023834,3]
[362198925,1748086251792,-430.0,0.00023834,3]
[362198926,1748086251801,-430.0,0.00023835,2]
[362198927,1748086251818,-430.0,0.00023835,3]
[362198928,1748086251828,-482.84,0.00023835,3]
[362198929,1748086251838,-430.0,0.00023835,3]
[362198930,1748086251848,-430.0,0.00023835,3]
[362198931,1748086251857,-430.0,0.00023835,3]
[362198932,1748086251866,-430.0,0.00023835,3]
[362198933,1748086251876,-430.0,0.00023835,3]
[362198934,1748086251885,-430.0,0.00023835,3]
[362198935,1748086251894,-430.0,0.00023835,3]
[362198936,1748086251903,-430.0,0.00023835,3]
[362198937,1748086251913,-430.0,0.00023835,3]
[362198938,1748086251923,-430.0,0.00023835,3]
[362198939,1748086251932,-430.0,0.00023835,3]
[362198940,1748086251942,-430.0,0.00023835,3]
[362198941,1748086251951,-430.0,0.00023835,3]
[362198942,1748086251960,-430.0,0.00023835,3]
[362198943,1748086251970,-430.0,0.00023835,3]
[362198944,1748086251979,-533.78,0.00023835,3]
[362198945,1748086251989,-430.0,0.00023835,3]
[362198946,1748086251998,-1274.65,0.00023835,3]
[362198947,1748086252007,-430.0,0.00023835,3]
[362198948,1748086252016,-430.0,0.00023835,3]
[362198949,1748086252026,-2092.13,0.00023835,3]
[362198950,1748086252036,-430.0,0.00023835,3]
[362198951,1748086252049,-537.2,0.00023835,3]
[362198952,1748086252058,-430.0,0.00023835,3]
[362198953,1748086252067,-430.0,0.00023835,3]
[362198954,1748086252076,-3133.36,0.00023835,3]
[362198955,1748086252086,-430.0,0.00023835,3]
[362198956,1748086252096,-430.0,0.00023835,3]
[362198957,1748086252106,-430.0,0.00023835,3]
[362198958,1748086252115,-430.0,0.00023835,3]
[362198959,1748086252125,-430.0,0.00023835,3]
[362198960,1748086252134,-430.0,0.00023835,3]
[362198961,1748086252143,-430.0,0.00023835,3]
[362198962,1748086252151,-430.0,0.00023835,3]
[362198963,1748086252161,-435.85,0.00023835,3]
[362198964,1748086252170,-430.0,0.00023835,3]
[362198965,1748086252179,-430.0,0.00023835,3]
[362198966,1748086252189,-581.99,0.00023835,3]
[362198967,1748086252198,-430.0,0.00023835,3]
[362198968,1748086252209,-430.0,0.00023835,3]
[362198969,1748086252218,-430.0,0.00023835,3]
[362198970,1748086252227,-430.0,0.00023835,3]
[362198971,1748086252236,-488.07,0.00023835,3]
[362198972,1748086252244,-990.05,0.00023835,3]
[362198973,1748086252254,-430.0,0.00023835,3]
[362198974,1748086252263,-430.0,0.00023835,3]
[362198975,1748086252272,-438.4,0.00023835,3]
[362198976,1748086252280,-430.0,0.00023835,3]
[362198977,1748086252289,-430.0,0.00023835,3]
[362198978,1748086252298,-430.0,0.00023835,3]
[362198979,1748086252308,-516.91,0.00023835,3]
[362198980,1748086252317,-1237.99,0.00023835,3]
[362198981,1748086252327,-693.0,0.00023835,3]
[362198982,1748086252336,-430.0,0.00023835,3]
[362198983,1748086252345,-596.48,0.00023835,3]
[362198984,1748086252355,-430.0,0.00023835,3]
[362198985,1748086252364,-1179.88,0.00023835,3]
[362198986,1748086252373,-437.6,0.00023835,3]
[362198987,1748086252384,-587.29,0.00023835,3]
[362198988,1748086252393,-430.0,0.00023835,3]
[362198989,1748086252403,-3379.15,0.00023835,3]
[362198990,1748086252418,-388.39925975,0.00023835,3]
[362198991,1748086252428,-430.0,0.00023835,3]
[362198992,1748086252437,-430.0,0.00023835,3]
[362198993,1748086252446,-430.0,0.00023835,3]
[362198994,1748086252456,-430.0,0.00023835,3]
[362198995,1748086252466,-2018.70573506,0.000239,2]
[362198996,1748086252475,-14806.13025226,0.00023947,7]
[362198997,1748086252594,-200.25337378,0.00023947,7]
[362198998,1748086252603,-4794.73062726,0.00024,2]
[362198999,1748086252984,-300.0,0.00017999,2]
[362199000,1748086252994,-282.5,0.00019639,2]
[362199001,1748086253041,-137.5,0.00019639,2]
[362199002,1748086253051,-587.0,0.00021428,2]
[362199003,1748086253060,-763.19041136,0.00021917,3]
[362199016,1748086823467,500.0,0.00024,120]
[362199017,1748086842029,-165.01443842,0.00013699,2]
[362199018,1748086869160,668.0,0.00024,120]
[362199019,1748086912916,-9.49790958,0.00013699,2]
[362199021,1748087034849,-1235.49,0.00015665,2]
[362199022,1748087034872,-54.51,0.00016438,3]
[362199023,1748087274978,340.0,0.00024657,120]
[362199035,1748087432064,-1213.03,0.00015666,2]
[362199036,1748087432074,-2426.06,0.0001709,2]
[362199038,1748087432083,-1200.0,0.00018512,2]
[362199040,1748087432092,-300.0,0.00018513,2]
[362199042,1748087432101,-300.0,0.00018513,2]
[362199044,1748087432111,-300.0,0.00018513,2]
[362199046,1748087432121,-3639.08,0.00018514,2]
[362199048,1748087432130,-3339.19737562,0.00019627,2]
[362199051,1748087432222,-4505.65177618,0.00019627,2]
[362199052,1748087432234,-250.0,0.0001971,2]
[362199053,1748087432248,-265.331147,0.00019881,2]
[362199054,1748087432261,-215.34581506,0.000199,2]
[362199055,1748087432273,-4852.11,0.00019939,2]
[362199056,1748087432286,-157.89,0.0002,2]
[362199057,1748087432296,-420.0,0.00020189,2]
[362199058,1748087432308,-197.7678753,0.00020461,2]
[362199059,1748087432320,-204.756889,0.00020698,2]
[362199060,1748087432331,-404.5760505,0.00020767,2]
[362199062,1748087432344,-5499.0639385,0.00020829,2]
[362199063,1748087432356,-500.0,0.00021,3]
[362199064,1748087432369,-160.0,0.00021052,2]
[362199066,1748087432380,-176.735029,0.00021081,2]
[362199068,1748087432394,-6065.14,0.00021363,2]
[362199070,1748087432407,-192.33715978,0.00021817,2]
[362199073,1748087432420,-910.33,0.00021907,10]
[362199075,1748087432433,-370.53239147,0.00021916,2]
[362199077,1748087432445,-500.0,0.00021916,2]
[362199080,1748087432456,-283.08465667,0.00021916,2]
[362199082,1748087432469,-347.50923949,0.00021916,2]
[362199084,1748087432479,-577.94546709,0.00021916,2]
[362199086,1748087432491,-225.0,0.00021916,2]
[362199089,1748087432504,-428.83922466,0.00021916,2]
[362199091,1748087432516,-192.266,0.00021917,2]
[362199093,1748087432527,-170.099,0.00021917,2]
[362199095,1748087432539,-430.0,0.00021917,3]
[362199098,1748087432549,-502.86741534,0.00021917,3]
[362199100,1748087432561,-451.44909909,0.00021917,3]
[362199102,1748087432573,-450.0,0.00021917,3]
[362199104,1748087432584,-410.9944905,0.00021917,3]
[362199106,1748087432596,-400.0,0.00021917,3]
[362199109,1748087432609,-430.0,0.00021917,3]
[362199111,1748087432621,-400.0,0.00021917,3]
[362199113,1748087432635,-400.0,0.00021917,3]
[362199116,1748087432648,-400.0,0.00021917,3]
[362199118,1748087432661,-505.5890807,0.00021917,3]
[362199120,1748087432672,-500.0,0.00021917,2]
[362199123,1748087432685,-424.40590533,0.00021917,3]
[362199125,1748087432695,-400.0,0.00021917,3]
[362199127,1748087432706,-406.06722317,0.00021917,3]
[362199128,1748087432716,-430.0,0.00021917,3]
[362199129,1748087432726,-430.0,0.00021917,3]
[362199130,1748087432738,-250.0,0.00021917,3]
[362199131,1748087432749,-430.0,0.00021917,3]
[362199132,1748087432762,-400.0,0.00021917,3]
[362199133,1748087432774,-356.60203319,0.00021917,3]
[362199134,1748087432784,-430.0,0.00021917,3]
[362199135,1748087432795,-250.0,0.00021917,3]
[362199136,1748087432807,-300.0,0.00021917,3]
[362199137,1748087432818,-218.23511087,0.00021917,3]
[362199138,1748087432832,-169.88174466,0.00021917,3]
[362199139,1748087432844,-430.0,0.00021917,3]
[362199140,1748087432854,-430.0,0.00021917,3]
[362199141,1748087432865,-430.0,0.00021917,3]
[362199142,1748087432875,-430.0,0.00021917,3]
[362199143,1748087432885,-430.0,0.00021917,3]
[362199144,1748087432895,-430.0,0.00021917,3]
[362199145,1748087432906,-400.0,0.00021917,3]
[362199146,1748087432917,-405.24967038,0.00021917,3]
[362199158,1748087438131,-24.75032962,0.00021917,3]
[362199159,1748087438141,-430.0,0.00021917,3]
[362199160,1748087438151,-430.0,0.00021917,3]
[362199161,1748087438160,-467.58026685,0.00021917,3]
[362199162,1748087438170,-430.0,0.00021917,3]
[362199163,1748087438179,-34.48410153,0.00021917,3]
[362199211,1748087443395,-758.61,0.00021907,10]
[362199212,1748087443407,-395.51589847,0.00021917,3]
[362199213,1748087443416,-400.0,0.00021917,3]
[362199214,1748087443425,-430.0,0.00021917,3]
[362199216,1748087443435,-430.0,0.00021917,3]
[362199218,1748087443445,-400.0,0.00021917,3]
[362199220,1748087443455,-402.57855156,0.00021917,3]
[362199221,1748087443464,-400.0,0.00021917,3]
[362199222,1748087443474,-495.07084781,0.00021917,3]
[362199223,1748087443483,-400.0,0.00021917,3]
[362199224,1748087443493,-430.0,0.00021917,3]
[362199226,1748087443502,-400.0,0.00021917,3]
[362199228,1748087443511,-430.0,0.00021917,3]
[362199230,1748087443521,-457.65377488,0.00021917,3]
[362199232,1748087443530,-430.0,0.00021917,3]
[362199234,1748087443539,-430.0,0.00021917,3]
[362199236,1748087443548,-400.0,0.00021917,3]
[362199237,1748087443557,-400.0,0.00021917,3]
[362199239,1748087443566,-400.0,0.00021917,3]
[362199241,1748087443576,-400.0,0.00021917,3]
[362199243,1748087443585,-400.0,0.00021917,3]
[362199245,1748087443594,-430.0,0.00021917,3]
[362199247,1748087443603,-400.0,0.00021917,3]
[362199249,1748087443612,-400.0,0.00021917,3]
[362199251,1748087443621,-430.0,0.00021917,3]
[362199252,1748087443630,-430.0,0.00021917,3]
[362199253,1748087443639,-399.76425097,0.00021917,3]
[362199254,1748087443649,-400.0,0.00021917,3]
[362199255,1748087443658,-430.0,0.00021917,3]
[362199256,1748087443667,-430.0,0.00021917,3]
[362199257,1748087443676,-409.00225661,0.00021917,3]
[362199258,1748087443685,-430.0,0.00021917,3]
[362199259,1748087443694,-430.0,0.00021917,3]
[362199260,1748087443703,-430.0,0.00021917,3]
[362199261,1748087443712,-430.0,0.00021917,3]
[362199262,1748087443722,-430.0,0.00021917,3]
[362199263,1748087443731,-430.0,0.00021917,3]
[362199264,1748087443739,-430.0,0.00021917,3]
[362199265,1748087443749,-430.0,0.00021917,3]
[362199266,1748087443758,-430.0,0.00021917,3]
[362199267,1748087443767,-430.0,0.00021917,3]
[362199268,1748087443777,-512.8,0.00021917,2]
[362199269,1748087443786,-430.0,0.00021917,3]
[362199270,1748087443795,-430.0,0.00021917,3]
[362199271,1748087443805,-430.0,0.00021917,3]
[362199272,1748087443815,-400.94237368,0.00021917,3]
[362199273,1748087443824,-430.0,0.00021917,3]
[362199274,1748087443833,-400.0,0.00021917,3]
[362199275,1748087443842,-430.0,0.00021917,3]
[362199276,1748087443852,-430.0,0.00021917,3]
[362199277,1748087443862,-430.0,0.00021917,3]
[362199278,1748087443871,-430.0,0.00021917,3]
[362199279,1748087443880,-430.0,0.00021917,3]
[362199280,1748087443890,-430.0,0.00021917,3]
[362199281,1748087443899,-430.0,0.00021917,3]
[362199282,1748087443908,-430.0,0.00021917,3]
[362199283,1748087443917,-400.0,0.00021917,3]
[362199284,1748087443926,-430.0,0.00021917,3]
[362199285,1748087443935,-430.0,0.00021917,3]
[362199286,1748087443944,-430.0,0.00021917,3]
[362199287,1748087443954,-430.0,0.00021917,3]
[362199288,1748087443963,-430.0,0.00021917,3]
[362199289,1748087443973,-430.0,0.00021917,3]
[362199290,1748087443982,-430.0,0.00021917,3]
[362199291,1748087443992,-430.0,0.00021917,3]
[362199292,1748087444001,-430.0,0.00021917,3]
[362199293,1748087444010,-430.0,0.00021917,3]
[362199294,1748087444019,-350.0,0.00021917,3]
[362199295,1748087444028,-430.0,0.00021917,3]
[362199296,1748087444037,-430.0,0.00021917,3]
[362199297,1748087444047,-430.0,0.00021917,3]
[362199298,1748087444057,-430.0,0.00021917,3]
[362199299,1748087444066,-430.0,0.00021917,3]
[362199300,1748087444075,-430.0,0.00021917,3]
[362199301,1748087444084,-430.0,0.00021917,3]
[362199302,1748087444094,-430.0,0.00021917,3]
[362199303,1748087444103,-430.0,0.00021917,3]
[362199304,1748087444112,-450.0,0.00021917,3]
[362199305,1748087444121,-430.0,0.00021917,3]
[362199306,1748087444131,-427.18,0.00021917,3]
[362199307,1748087444140,-450.0,0.00021917,3]
[362199308,1748087444149,-430.0,0.00021917,3]
[362199309,1748087444159,-430.0,0.00021917,3]
[362199310,1748087444168,-496.84352696,0.00021917,3]
[362199311,1748087444177,-350.0,0.00021917,3]
[362199312,1748087444186,-450.0,0.00021917,3]
[362199313,1748087444196,-559.44355287,0.00021917,3]
[362199314,1748087444206,-430.0,0.00021917,3]
[362199315,1748087444215,-430.0,0.00021917,3]
[362199316,1748087444224,-430.0,0.00021917,3]
[362199317,1748087444234,-560.23413708,0.00021917,3]
[362199318,1748087444243,-400.0,0.00021917,3]
[362199319,1748087444252,-430.0,0.00021917,3]
[362199320,1748087444262,-450.0,0.00021917,3]
[362199321,1748087444271,-407.44433781,0.00021917,3]
[362199322,1748087444280,-270.0,0.00021917,3]
[362199323,1748087444290,-187.02664618,0.00021917,3]
[362199324,1748087444299,-430.0,0.00021917,3]
[362199325,1748087444308,-304.47149506,0.00021917,3]
[362199326,1748087444317,-430.0,0.00021917,3]